{"text_format":"3","workbook":"xlsx","n_sheets":13,"sheets":["Қаңтар","Ақпан","наурыз","сәуір","Мамыр","Маусым","Шілде","Тамыз","Қыркүйек","Қазан","Қараша","Желтоқсан","Осы жылғы жиынтық"],"not_rendered":{"charts":1,"defined_names":13},"read":"whole","date_system":"1900"}

{"sheet":"Қаңтар","index":0,"n_rows":9,"n_cols":14,"rows_kept":9,"merged":[[3,0,4,0],[6,0,7,0]]}
["ҚАҢТАР"]
["Желідегі сатулар",null,"Аукцион идентификаторы","Тауар сипаттамасы","Сатып алу бағасы","Сату бағасы","Желідегі төлемдер","Басқа төлемдері","Несиелік карталар төлемдері","Жеткізу төлемдері","Жеткізу төлемдері2","Сатулар пайдасы/шығыны","Тасымалдау пайдасы/шығыны","Жалпы пайда/шығын"]
["Жыл",null,"TS001","1-элемент",{"v":5,"d":"Т5.00"},{"v":4,"d":"Т4.00"},{"v":2,"d":"Т2.00"},{"v":1.5,"d":"Т1.50"},{"v":0,"d":"Т0.00"},{"v":4,"d":"Т4.00"},{"v":2,"d":"Т2.00"},{"$f":"IFERROR(JanuarySales[Сату бағасы]-(JanuarySales[Сатып алу бағасы]+JanuarySales[Желідегі төлемдер]+JanuarySales[Басқа төлемдері]+JanuarySales[Несиелік карталар төлемдері]),\"\")","v":{"v":-4.5,"d":"-Т4.50"}},{"$f":"JanuarySales[Жеткізу төлемдері]-JanuarySales[Жеткізу төлемдері2]","v":{"v":2,"d":"Т2.00"}},{"$f":"JanuarySales[Сатулар пайдасы/шығыны]+JanuarySales[Тасымалдау пайдасы/шығыны]","v":{"v":-2.5,"d":"-Т2.50"}}]
[2012,null,"TP004","2-элемент",{"v":2,"d":"Т2.00"},{"v":30,"d":"Т30.00"},{"v":0.5,"d":"Т0.50"},{"v":0.5,"d":"Т0.50"},null,{"v":4,"d":"Т4.00"},{"v":5.5,"d":"Т5.50"},{"$f":"IFERROR(JanuarySales[Сату бағасы]-(JanuarySales[Сатып алу бағасы]+JanuarySales[Желідегі төлемдер]+JanuarySales[Басқа төлемдері]+JanuarySales[Несиелік карталар төлемдері]),\"\")","v":{"v":27,"d":"Т27.00"}},{"$f":"JanuarySales[Жеткізу төлемдері]-JanuarySales[Жеткізу төлемдері2]","v":{"v":-1.5,"d":"-Т1.50"}},{"$f":"JanuarySales[Сатулар пайдасы/шығыны]+JanuarySales[Тасымалдау пайдасы/шығыны]","v":{"v":25.5,"d":"Т25.50"}}]
[null,null,"RS99","3-элемент",{"v":17,"d":"Т17.00"},{"v":23,"d":"Т23.00"},{"v":2,"d":"Т2.00"},null,{"v":2,"d":"Т2.00"},{"v":3,"d":"Т3.00"},{"v":2,"d":"Т2.00"},{"$f":"IFERROR(JanuarySales[Сату бағасы]-(JanuarySales[Сатып алу бағасы]+JanuarySales[Желідегі төлемдер]+JanuarySales[Басқа төлемдері]+JanuarySales[Несиелік карталар төлемдері]),\"\")","v":{"v":2,"d":"Т2.00"}},{"$f":"JanuarySales[Жеткізу төлемдері]-JanuarySales[Жеткізу төлемдері2]","v":{"v":1,"d":"Т1.00"}},{"$f":"JanuarySales[Сатулар пайдасы/шығыны]+JanuarySales[Тасымалдау пайдасы/шығыны]","v":{"v":3,"d":"Т3.00"}}]
["Жалпы пайда/шығын",null,"ST001","4-элемент",{"v":120,"d":"Т120.00"},{"v":180,"d":"Т180.00"},{"v":2,"d":"Т2.00"},{"v":1.5,"d":"Т1.50"},null,{"v":3,"d":"Т3.00"},{"v":2,"d":"Т2.00"},{"$f":"IFERROR(JanuarySales[Сату бағасы]-(JanuarySales[Сатып алу бағасы]+JanuarySales[Желідегі төлемдер]+JanuarySales[Басқа төлемдері]+JanuarySales[Несиелік карталар төлемдері]),\"\")","v":{"v":56.5,"d":"Т56.50"}},{"$f":"JanuarySales[Жеткізу төлемдері]-JanuarySales[Жеткізу төлемдері2]","v":{"v":1,"d":"Т1.00"}},{"$f":"JanuarySales[Сатулар пайдасы/шығыны]+JanuarySales[Тасымалдау пайдасы/шығыны]","v":{"v":57.5,"d":"Т57.50"}}]
[{"$f":"JanuarySales[[#Totals],[Жалпы пайда/шығын]]","v":{"v":89,"d":"Т89.00"}},null,"ST001","5-элемент",{"v":10,"d":"Т10.00"},{"v":12,"d":"Т12.00"},{"v":2,"d":"Т2.00"},{"v":1.5,"d":"Т1.50"},null,{"v":14,"d":"Т14.00"},{"v":7,"d":"Т7.00"},{"$f":"IFERROR(JanuarySales[Сату бағасы]-(JanuarySales[Сатып алу бағасы]+JanuarySales[Желідегі төлемдер]+JanuarySales[Басқа төлемдері]+JanuarySales[Несиелік карталар төлемдері]),\"\")","v":{"v":-1.5,"d":"-Т1.50"}},{"$f":"JanuarySales[Жеткізу төлемдері]-JanuarySales[Жеткізу төлемдері2]","v":{"v":7,"d":"Т7.00"}},{"$f":"JanuarySales[Сатулар пайдасы/шығыны]+JanuarySales[Тасымалдау пайдасы/шығыны]","v":{"v":5.5,"d":"Т5.50"}}]
[null,null,"Қорытынды",{"$f":"\"Сатылған тауарлар: \"&SUBTOTAL(103,JanuarySales[Тауар сипаттамасы])","v":"Сатылған тауарлар: 5"},{"$f":"SUBTOTAL(109,JanuarySales[Сатып алу бағасы])","v":{"v":154,"d":"Т154.00"}},{"$f":"SUBTOTAL(109,JanuarySales[Сату бағасы])","v":{"v":249,"d":"Т249.00"}},{"$f":"SUBTOTAL(109,JanuarySales[Желідегі төлемдер])","v":{"v":8.5,"d":"Т8.50"}},{"$f":"SUBTOTAL(109,JanuarySales[Басқа төлемдері])","v":{"v":5,"d":"Т5.00"}},{"$f":"SUBTOTAL(109,JanuarySales[Несиелік карталар төлемдері])","v":{"v":2,"d":"Т2.00"}},{"$f":"SUBTOTAL(109,JanuarySales[Жеткізу төлемдері])","v":{"v":28,"d":"Т28.00"}},{"$f":"SUBTOTAL(109,JanuarySales[Жеткізу төлемдері2])","v":{"v":18.5,"d":"Т18.50"}},{"$f":"SUBTOTAL(109,JanuarySales[Сатулар пайдасы/шығыны])","v":{"v":79.5,"d":"Т79.50"}},{"$f":"SUBTOTAL(109,JanuarySales[Тасымалдау пайдасы/шығыны])","v":{"v":9.5,"d":"Т9.50"}},{"$f":"SUBTOTAL(109,JanuarySales[Жалпы пайда/шығын])","v":{"v":89,"d":"Т89.00"}}]
["Пайда/шығын бағыты"]

{"sheet":"Ақпан","index":1,"n_rows":9,"n_cols":14,"rows_kept":9,"merged":[[3,0,4,0],[6,0,7,0]]}
["АҚПАН"]
["Желідегі сатулар",null,"Аукцион идентификаторы","Тауар сипаттамасы","Сатып алу бағасы","Сату бағасы","Желідегі төлемдер","Басқа төлемдері","Несиелік карталар төлемдері","Жеткізу төлемдері","Жеткізу төлемдері2","Сатулар пайдасы/шығыны","Тасымалдау пайдасы/шығыны","Жалпы пайда/шығын"]
["Жыл",null,"TS020","1-элемент",{"v":10,"d":"Т10.00"},{"v":175,"d":"Т175.00"},{"v":3,"d":"Т3.00"},{"v":1.5,"d":"Т1.50"},{"v":0,"d":"Т0.00"},{"v":7,"d":"Т7.00"},{"v":5,"d":"Т5.00"},{"$f":"IFERROR(FebruarySales[Сату бағасы]-(FebruarySales[Сатып алу бағасы]+FebruarySales[Желідегі төлемдер]+FebruarySales[Басқа төлемдері]+FebruarySales[Несиелік карталар төлемдері]),\"\")","v":{"v":160.5,"d":"Т160.50"}},{"$f":"FebruarySales[Жеткізу төлемдері]-FebruarySales[Жеткізу төлемдері2]","v":{"v":2,"d":"Т2.00"}},{"$f":"FebruarySales[Сатулар пайдасы/шығыны]+FebruarySales[Тасымалдау пайдасы/шығыны]","v":{"v":162.5,"d":"Т162.50"}}]
[{"$f":"SalesYear","v":2012},null,"TS021","2-элемент",{"v":32,"d":"Т32.00"},{"v":100,"d":"Т100.00"},{"v":3,"d":"Т3.00"},null,{"v":3.2,"d":"Т3.20"},{"v":20,"d":"Т20.00"},{"v":13,"d":"Т13.00"},{"$f":"IFERROR(FebruarySales[Сату бағасы]-(FebruarySales[Сатып алу бағасы]+FebruarySales[Желідегі төлемдер]+FebruarySales[Басқа төлемдері]+FebruarySales[Несиелік карталар төлемдері]),\"\")","v":{"v":61.8,"d":"Т61.80"}},{"$f":"FebruarySales[Жеткізу төлемдері]-FebruarySales[Жеткізу төлемдері2]","v":{"v":7,"d":"Т7.00"}},{"$f":"FebruarySales[Сатулар пайдасы/шығыны]+FebruarySales[Тасымалдау пайдасы/шығыны]","v":{"v":68.8,"d":"Т68.80"}}]
[null,null,"TS022","3-элемент",{"v":3,"d":"Т3.00"},{"v":7,"d":"Т7.00"},{"v":2,"d":"Т2.00"},null,{"v":2,"d":"Т2.00"},{"v":0.5,"d":"Т0.50"},{"v":1.2,"d":"Т1.20"},{"$f":"IFERROR(FebruarySales[Сату бағасы]-(FebruarySales[Сатып алу бағасы]+FebruarySales[Желідегі төлемдер]+FebruarySales[Басқа төлемдері]+FebruarySales[Несиелік карталар төлемдері]),\"\")","v":{"v":0,"d":"Т0.00"}},{"$f":"FebruarySales[Жеткізу төлемдері]-FebruarySales[Жеткізу төлемдері2]","v":{"v":-0.7,"d":"-Т0.70"}},{"$f":"FebruarySales[Сатулар пайдасы/шығыны]+FebruarySales[Тасымалдау пайдасы/шығыны]","v":{"v":-0.7,"d":"-Т0.70"}}]
["Жалпы пайда/шығын",null,"TS023","4-элемент",{"v":22,"d":"Т22.00"},{"v":18,"d":"Т18.00"},{"v":3,"d":"Т3.00"},{"v":1.5,"d":"Т1.50"},null,{"v":7,"d":"Т7.00"},{"v":10,"d":"Т10.00"},{"$f":"IFERROR(FebruarySales[Сату бағасы]-(FebruarySales[Сатып алу бағасы]+FebruarySales[Желідегі төлемдер]+FebruarySales[Басқа төлемдері]+FebruarySales[Несиелік карталар төлемдері]),\"\")","v":{"v":-8.5,"d":"-Т8.50"}},{"$f":"FebruarySales[Жеткізу төлемдері]-FebruarySales[Жеткізу төлемдері2]","v":{"v":-3,"d":"-Т3.00"}},{"$f":"FebruarySales[Сатулар пайдасы/шығыны]+FebruarySales[Тасымалдау пайдасы/шығыны]","v":{"v":-11.5,"d":"-Т11.50"}}]
[{"$f":"FebruarySales[[#Totals],[Жалпы пайда/шығын]]","v":{"v":224.60000000000002,"d":"Т224.60"}},null,"TS024","5-элемент",{"v":10,"d":"Т10.00"},{"v":12,"d":"Т12.00"},{"v":2,"d":"Т2.00"},{"v":1.5,"d":"Т1.50"},null,{"v":14,"d":"Т14.00"},{"v":7,"d":"Т7.00"},{"$f":"IFERROR(FebruarySales[Сату бағасы]-(FebruarySales[Сатып алу бағасы]+FebruarySales[Желідегі төлемдер]+FebruarySales[Басқа төлемдері]+FebruarySales[Несиелік карталар төлемдері]),\"\")","v":{"v":-1.5,"d":"-Т1.50"}},{"$f":"FebruarySales[Жеткізу төлемдері]-FebruarySales[Жеткізу төлемдері2]","v":{"v":7,"d":"Т7.00"}},{"$f":"FebruarySales[Сатулар пайдасы/шығыны]+FebruarySales[Тасымалдау пайдасы/шығыны]","v":{"v":5.5,"d":"Т5.50"}}]
[null,null,"Қорытынды",{"$f":"\"Сатылған тауарлар: \"&SUBTOTAL(103,FebruarySales[Тауар сипаттамасы])","v":"Сатылған тауарлар: 5"},{"$f":"SUBTOTAL(109,FebruarySales[Сатып алу бағасы])","v":{"v":77,"d":"Т77.00"}},{"$f":"SUBTOTAL(109,FebruarySales[Сату бағасы])","v":{"v":312,"d":"Т312.00"}},{"$f":"SUBTOTAL(109,FebruarySales[Желідегі төлемдер])","v":{"v":13,"d":"Т13.00"}},{"$f":"SUBTOTAL(109,FebruarySales[Басқа төлемдері])","v":{"v":4.5,"d":"Т4.50"}},{"$f":"SUBTOTAL(109,FebruarySales[Несиелік карталар төлемдері])","v":{"v":5.2,"d":"Т5.20"}},{"$f":"SUBTOTAL(109,FebruarySales[Жеткізу төлемдері])","v":{"v":48.5,"d":"Т48.50"}},{"$f":"SUBTOTAL(109,FebruarySales[Жеткізу төлемдері2])","v":{"v":36.2,"d":"Т36.20"}},{"$f":"SUBTOTAL(109,FebruarySales[Сатулар пайдасы/шығыны])","v":{"v":212.3,"d":"Т212.30"}},{"$f":"SUBTOTAL(109,FebruarySales[Тасымалдау пайдасы/шығыны])","v":{"v":12.3,"d":"Т12.30"}},{"$f":"SUBTOTAL(109,FebruarySales[Жалпы пайда/шығын])","v":{"v":224.60000000000002,"d":"Т224.60"}}]
["Пайда/шығын бағыты"]

{"sheet":"наурыз","index":2,"n_rows":9,"n_cols":14,"rows_kept":9,"merged":[[3,0,4,0],[6,0,7,0]]}
["НАУРЫЗ"]
["Желідегі сатулар",null,"Аукцион идентификаторы","Тауар сипаттамасы","Сатып алу бағасы","Сату бағасы","Желідегі төлемдер","Басқа төлемдері","Несиелік карталар төлемдері","Жеткізу төлемдері","Жеткізу төлемдері2","Сатулар пайдасы/шығыны","Тасымалдау пайдасы/шығыны","Жалпы пайда/шығын"]
["Жыл",{"$nulls":10},{"$f":"IFERROR(MarchSales[Сату бағасы]-(MarchSales[Сатып алу бағасы]+MarchSales[Желідегі төлемдер]+MarchSales[Басқа төлемдері]+MarchSales[Несиелік карталар төлемдері]),\"\")","v":{"v":0,"d":"Т0.00"}},{"$f":"MarchSales[Жеткізу төлемдері]-MarchSales[Жеткізу төлемдері2]","v":{"v":0,"d":"Т0.00"}},{"$f":"MarchSales[Сатулар пайдасы/шығыны]+MarchSales[Тасымалдау пайдасы/шығыны]","v":{"v":0,"d":"Т0.00"}}]
[{"$f":"SalesYear","v":2012},{"$nulls":10},{"$f":"IFERROR(MarchSales[Сату бағасы]-(MarchSales[Сатып алу бағасы]+MarchSales[Желідегі төлемдер]+MarchSales[Басқа төлемдері]+MarchSales[Несиелік карталар төлемдері]),\"\")","v":{"v":0,"d":"Т0.00"}},{"$f":"MarchSales[Жеткізу төлемдері]-MarchSales[Жеткізу төлемдері2]","v":{"v":0,"d":"Т0.00"}},{"$f":"MarchSales[Сатулар пайдасы/шығыны]+MarchSales[Тасымалдау пайдасы/шығыны]","v":{"v":0,"d":"Т0.00"}}]
[{"$nulls":11},{"$f":"IFERROR(MarchSales[Сату бағасы]-(MarchSales[Сатып алу бағасы]+MarchSales[Желідегі төлемдер]+MarchSales[Басқа төлемдері]+MarchSales[Несиелік карталар төлемдері]),\"\")","v":{"v":0,"d":"Т0.00"}},{"$f":"MarchSales[Жеткізу төлемдері]-MarchSales[Жеткізу төлемдері2]","v":{"v":0,"d":"Т0.00"}},{"$f":"MarchSales[Сатулар пайдасы/шығыны]+MarchSales[Тасымалдау пайдасы/шығыны]","v":{"v":0,"d":"Т0.00"}}]
["Жалпы пайда/шығын",{"$nulls":10},{"$f":"IFERROR(MarchSales[Сату бағасы]-(MarchSales[Сатып алу бағасы]+MarchSales[Желідегі төлемдер]+MarchSales[Басқа төлемдері]+MarchSales[Несиелік карталар төлемдері]),\"\")","v":{"v":0,"d":"Т0.00"}},{"$f":"MarchSales[Жеткізу төлемдері]-MarchSales[Жеткізу төлемдері2]","v":{"v":0,"d":"Т0.00"}},{"$f":"MarchSales[Сатулар пайдасы/шығыны]+MarchSales[Тасымалдау пайдасы/шығыны]","v":{"v":0,"d":"Т0.00"}}]
[{"$f":"MarchSales[[#Totals],[Жалпы пайда/шығын]]","v":{"v":0,"d":"Т0.00"}},{"$nulls":10},{"$f":"IFERROR(MarchSales[Сату бағасы]-(MarchSales[Сатып алу бағасы]+MarchSales[Желідегі төлемдер]+MarchSales[Басқа төлемдері]+MarchSales[Несиелік карталар төлемдері]),\"\")","v":{"v":0,"d":"Т0.00"}},{"$f":"MarchSales[Жеткізу төлемдері]-MarchSales[Жеткізу төлемдері2]","v":{"v":0,"d":"Т0.00"}},{"$f":"MarchSales[Сатулар пайдасы/шығыны]+MarchSales[Тасымалдау пайдасы/шығыны]","v":{"v":0,"d":"Т0.00"}}]
[null,null,"Қорытынды",{"$f":"\"Сатылған тауарлар: \"&SUBTOTAL(103,MarchSales[Тауар сипаттамасы])","v":"Сатылған тауарлар: 0"},{"$f":"SUBTOTAL(109,MarchSales[Сатып алу бағасы])","v":{"v":0,"d":"Т0.00"}},{"$f":"SUBTOTAL(109,MarchSales[Сату бағасы])","v":{"v":0,"d":"Т0.00"}},{"$f":"SUBTOTAL(109,MarchSales[Желідегі төлемдер])","v":{"v":0,"d":"Т0.00"}},{"$f":"SUBTOTAL(109,MarchSales[Басқа төлемдері])","v":{"v":0,"d":"Т0.00"}},{"$f":"SUBTOTAL(109,MarchSales[Несиелік карталар төлемдері])","v":{"v":0,"d":"Т0.00"}},{"$f":"SUBTOTAL(109,MarchSales[Жеткізу төлемдері])","v":{"v":0,"d":"Т0.00"}},{"$f":"SUBTOTAL(109,MarchSales[Жеткізу төлемдері2])","v":{"v":0,"d":"Т0.00"}},{"$f":"SUBTOTAL(109,MarchSales[Сатулар пайдасы/шығыны])","v":{"v":0,"d":"Т0.00"}},{"$f":"SUBTOTAL(109,MarchSales[Тасымалдау пайдасы/шығыны])","v":{"v":0,"d":"Т0.00"}},{"$f":"SUBTOTAL(109,MarchSales[Жалпы пайда/шығын])","v":{"v":0,"d":"Т0.00"}}]
["Пайда/шығын бағыты"]

{"sheet":"сәуір","index":3,"n_rows":9,"n_cols":14,"rows_kept":9,"merged":[[3,0,4,0],[6,0,7,0]]}
["СӘУІР"]
["Желідегі сатулар",null,"Аукцион идентификаторы","Тауар сипаттамасы","Сатып алу бағасы","Сату бағасы","Желідегі төлемдер","Басқа төлемдері","Несиелік карталар төлемдері","Жеткізу төлемдері","Жеткізу төлемдері2","Сатулар пайдасы/шығыны","Тасымалдау пайдасы/шығыны","Жалпы пайда/шығын"]
["Жыл",{"$nulls":11},{"$f":"AprilSales[Жеткізу төлемдері]-AprilSales[Жеткізу төлемдері2]","v":{"v":0,"d":"Т0.00"}},{"$f":"AprilSales[Сатулар пайдасы/шығыны]+AprilSales[Тасымалдау пайдасы/шығыны]","v":{"v":0,"d":"Т0.00"}}]
[{"$f":"SalesYear","v":2012},{"$nulls":11},{"$f":"AprilSales[Жеткізу төлемдері]-AprilSales[Жеткізу төлемдері2]","v":{"v":0,"d":"Т0.00"}},{"$f":"AprilSales[Сатулар пайдасы/шығыны]+AprilSales[Тасымалдау пайдасы/шығыны]","v":{"v":0,"d":"Т0.00"}}]
[{"$nulls":12},{"$f":"AprilSales[Жеткізу төлемдері]-AprilSales[Жеткізу төлемдері2]","v":{"v":0,"d":"Т0.00"}},{"$f":"AprilSales[Сатулар пайдасы/шығыны]+AprilSales[Тасымалдау пайдасы/шығыны]","v":{"v":0,"d":"Т0.00"}}]
["Жалпы пайда/шығын",{"$nulls":11},{"$f":"AprilSales[Жеткізу төлемдері]-AprilSales[Жеткізу төлемдері2]","v":{"v":0,"d":"Т0.00"}},{"$f":"AprilSales[Сатулар пайдасы/шығыны]+AprilSales[Тасымалдау пайдасы/шығыны]","v":{"v":0,"d":"Т0.00"}}]
[{"$f":"AprilSales[[#Totals],[Жалпы пайда/шығын]]","v":{"v":0,"d":"Т0.00"}},{"$nulls":11},{"$f":"AprilSales[Жеткізу төлемдері]-AprilSales[Жеткізу төлемдері2]","v":{"v":0,"d":"Т0.00"}},{"$f":"AprilSales[Сатулар пайдасы/шығыны]+AprilSales[Тасымалдау пайдасы/шығыны]","v":{"v":0,"d":"Т0.00"}}]
[null,null,"Қорытынды",{"$f":"\"Сатылған тауарлар: \"&SUBTOTAL(103,AprilSales[Тауар сипаттамасы])","v":"Сатылған тауарлар: 0"},{"$f":"SUBTOTAL(109,AprilSales[Сатып алу бағасы])","v":{"v":0,"d":"Т0.00"}},{"$f":"SUBTOTAL(109,AprilSales[Сату бағасы])","v":{"v":0,"d":"Т0.00"}},{"$f":"SUBTOTAL(109,AprilSales[Желідегі төлемдер])","v":{"v":0,"d":"Т0.00"}},{"$f":"SUBTOTAL(109,AprilSales[Басқа төлемдері])","v":{"v":0,"d":"Т0.00"}},{"$f":"SUBTOTAL(109,AprilSales[Несиелік карталар төлемдері])","v":{"v":0,"d":"Т0.00"}},{"$f":"SUBTOTAL(109,AprilSales[Жеткізу төлемдері])","v":{"v":0,"d":"Т0.00"}},{"$f":"SUBTOTAL(109,AprilSales[Жеткізу төлемдері2])","v":{"v":0,"d":"Т0.00"}},{"$f":"SUBTOTAL(109,AprilSales[Сатулар пайдасы/шығыны])","v":{"v":0,"d":"Т0.00"}},{"$f":"SUBTOTAL(109,AprilSales[Тасымалдау пайдасы/шығыны])","v":{"v":0,"d":"Т0.00"}},{"$f":"SUBTOTAL(109,AprilSales[Жалпы пайда/шығын])","v":{"v":0,"d":"Т0.00"}}]
["Пайда/шығын бағыты"]

{"sheet":"Мамыр","index":4,"n_rows":9,"n_cols":14,"rows_kept":9,"merged":[[3,0,4,0],[6,0,7,0]]}
["МАМЫР"]
["Желідегі сатулар",null,"Аукцион идентификаторы","Тауар сипаттамасы","Сатып алу бағасы","Сату бағасы","Желідегі төлемдер","Басқа төлемдері","Несиелік карталар төлемдері","Жеткізу төлемдері","Жеткізу төлемдері2","Сатулар пайдасы/шығыны","Тасымалдау пайдасы/шығыны","Жалпы пайда/шығын"]
["Жыл",{"$nulls":11},{"$f":"MaySales[Жеткізу төлемдері]-MaySales[Жеткізу төлемдері2]","v":{"v":0,"d":"Т0.00"}},{"$f":"MaySales[Сатулар пайдасы/шығыны]+MaySales[Тасымалдау пайдасы/шығыны]","v":{"v":0,"d":"Т0.00"}}]
[{"$f":"SalesYear","v":2012},{"$nulls":11},{"$f":"MaySales[Жеткізу төлемдері]-MaySales[Жеткізу төлемдері2]","v":{"v":0,"d":"Т0.00"}},{"$f":"MaySales[Сатулар пайдасы/шығыны]+MaySales[Тасымалдау пайдасы/шығыны]","v":{"v":0,"d":"Т0.00"}}]
[{"$nulls":12},{"$f":"MaySales[Жеткізу төлемдері]-MaySales[Жеткізу төлемдері2]","v":{"v":0,"d":"Т0.00"}},{"$f":"MaySales[Сатулар пайдасы/шығыны]+MaySales[Тасымалдау пайдасы/шығыны]","v":{"v":0,"d":"Т0.00"}}]
["Жалпы пайда/шығын",{"$nulls":11},{"$f":"MaySales[Жеткізу төлемдері]-MaySales[Жеткізу төлемдері2]","v":{"v":0,"d":"Т0.00"}},{"$f":"MaySales[Сатулар пайдасы/шығыны]+MaySales[Тасымалдау пайдасы/шығыны]","v":{"v":0,"d":"Т0.00"}}]
[{"$f":"MaySales[[#Totals],[Жалпы пайда/шығын]]","v":{"v":0,"d":"Т0.00"}},{"$nulls":11},{"$f":"MaySales[Жеткізу төлемдері]-MaySales[Жеткізу төлемдері2]","v":{"v":0,"d":"Т0.00"}},{"$f":"MaySales[Сатулар пайдасы/шығыны]+MaySales[Тасымалдау пайдасы/шығыны]","v":{"v":0,"d":"Т0.00"}}]
[null,null,"Қорытынды",{"$f":"\"Сатылған тауарлар: \"&SUBTOTAL(103,MaySales[Тауар сипаттамасы])","v":"Сатылған тауарлар: 0"},{"$f":"SUBTOTAL(109,MaySales[Сатып алу бағасы])","v":{"v":0,"d":"Т0.00"}},{"$f":"SUBTOTAL(109,MaySales[Сату бағасы])","v":{"v":0,"d":"Т0.00"}},{"$f":"SUBTOTAL(109,MaySales[Желідегі төлемдер])","v":{"v":0,"d":"Т0.00"}},{"$f":"SUBTOTAL(109,MaySales[Басқа төлемдері])","v":{"v":0,"d":"Т0.00"}},{"$f":"SUBTOTAL(109,MaySales[Несиелік карталар төлемдері])","v":{"v":0,"d":"Т0.00"}},{"$f":"SUBTOTAL(109,MaySales[Жеткізу төлемдері])","v":{"v":0,"d":"Т0.00"}},{"$f":"SUBTOTAL(109,MaySales[Жеткізу төлемдері2])","v":{"v":0,"d":"Т0.00"}},{"$f":"SUBTOTAL(109,MaySales[Сатулар пайдасы/шығыны])","v":{"v":0,"d":"Т0.00"}},{"$f":"SUBTOTAL(109,MaySales[Тасымалдау пайдасы/шығыны])","v":{"v":0,"d":"Т0.00"}},{"$f":"SUBTOTAL(109,MaySales[Жалпы пайда/шығын])","v":{"v":0,"d":"Т0.00"}}]
["Пайда/шығын бағыты"]

{"sheet":"Маусым","index":5,"n_rows":9,"n_cols":14,"rows_kept":9,"merged":[[3,0,4,0],[6,0,7,0]]}
["МАУСЫМ"]
["Желідегі сатулар",null,"Аукцион идентификаторы","Тауар сипаттамасы","Сатып алу бағасы","Сату бағасы","Желідегі төлемдер","Басқа төлемдері","Несиелік карталар төлемдері","Жеткізу төлемдері","Жеткізу төлемдері2","Сатулар пайдасы/шығыны","Тасымалдау пайдасы/шығыны","Жалпы пайда/шығын"]
["Жыл",{"$nulls":11},{"$f":"JuneSales[Жеткізу төлемдері]-JuneSales[Жеткізу төлемдері2]","v":{"v":0,"d":"Т0.00"}},{"$f":"JuneSales[Сатулар пайдасы/шығыны]+JuneSales[Тасымалдау пайдасы/шығыны]","v":{"v":0,"d":"Т0.00"}}]
[{"$f":"SalesYear","v":2012},{"$nulls":11},{"$f":"JuneSales[Жеткізу төлемдері]-JuneSales[Жеткізу төлемдері2]","v":{"v":0,"d":"Т0.00"}},{"$f":"JuneSales[Сатулар пайдасы/шығыны]+JuneSales[Тасымалдау пайдасы/шығыны]","v":{"v":0,"d":"Т0.00"}}]
[{"$nulls":12},{"$f":"JuneSales[Жеткізу төлемдері]-JuneSales[Жеткізу төлемдері2]","v":{"v":0,"d":"Т0.00"}},{"$f":"JuneSales[Сатулар пайдасы/шығыны]+JuneSales[Тасымалдау пайдасы/шығыны]","v":{"v":0,"d":"Т0.00"}}]
["Жалпы пайда/шығын",{"$nulls":11},{"$f":"JuneSales[Жеткізу төлемдері]-JuneSales[Жеткізу төлемдері2]","v":{"v":0,"d":"Т0.00"}},{"$f":"JuneSales[Сатулар пайдасы/шығыны]+JuneSales[Тасымалдау пайдасы/шығыны]","v":{"v":0,"d":"Т0.00"}}]
[{"$f":"JuneSales[[#Totals],[Жалпы пайда/шығын]]","v":{"v":0,"d":"Т0.00"}},{"$nulls":11},{"$f":"JuneSales[Жеткізу төлемдері]-JuneSales[Жеткізу төлемдері2]","v":{"v":0,"d":"Т0.00"}},{"$f":"JuneSales[Сатулар пайдасы/шығыны]+JuneSales[Тасымалдау пайдасы/шығыны]","v":{"v":0,"d":"Т0.00"}}]
[null,null,"Қорытынды",{"$f":"\"Сатылған тауарлар: \"&SUBTOTAL(103,JuneSales[Тауар сипаттамасы])","v":"Сатылған тауарлар: 0"},{"$f":"SUBTOTAL(109,JuneSales[Сатып алу бағасы])","v":{"v":0,"d":"Т0.00"}},{"$f":"SUBTOTAL(109,JuneSales[Сату бағасы])","v":{"v":0,"d":"Т0.00"}},{"$f":"SUBTOTAL(109,JuneSales[Желідегі төлемдер])","v":{"v":0,"d":"Т0.00"}},{"$f":"SUBTOTAL(109,JuneSales[Басқа төлемдері])","v":{"v":0,"d":"Т0.00"}},{"$f":"SUBTOTAL(109,JuneSales[Несиелік карталар төлемдері])","v":{"v":0,"d":"Т0.00"}},{"$f":"SUBTOTAL(109,JuneSales[Жеткізу төлемдері])","v":{"v":0,"d":"Т0.00"}},{"$f":"SUBTOTAL(109,JuneSales[Жеткізу төлемдері2])","v":{"v":0,"d":"Т0.00"}},{"$f":"SUBTOTAL(109,JuneSales[Сатулар пайдасы/шығыны])","v":{"v":0,"d":"Т0.00"}},{"$f":"SUBTOTAL(109,JuneSales[Тасымалдау пайдасы/шығыны])","v":{"v":0,"d":"Т0.00"}},{"$f":"SUBTOTAL(109,JuneSales[Жалпы пайда/шығын])","v":{"v":0,"d":"Т0.00"}}]
["Пайда/шығын бағыты"]

{"sheet":"Шілде","index":6,"n_rows":9,"n_cols":14,"rows_kept":9,"merged":[[3,0,4,0],[6,0,7,0]]}
["ШІЛДЕ"]
["Желідегі сатулар",null,"Аукцион идентификаторы","Тауар сипаттамасы","Сатып алу бағасы","Сату бағасы","Желідегі төлемдер","Басқа төлемдері","Несиелік карталар төлемдері","Жеткізу төлемдері","Жеткізу төлемдері2","Сатулар пайдасы/шығыны","Тасымалдау пайдасы/шығыны","Жалпы пайда/шығын"]
["Жыл",{"$nulls":11},{"$f":"JulySales[Жеткізу төлемдері]-JulySales[Жеткізу төлемдері2]","v":{"v":0,"d":"Т0.00"}},{"$f":"JulySales[Сатулар пайдасы/шығыны]+JulySales[Тасымалдау пайдасы/шығыны]","v":{"v":0,"d":"Т0.00"}}]
[{"$f":"SalesYear","v":2012},{"$nulls":11},{"$f":"JulySales[Жеткізу төлемдері]-JulySales[Жеткізу төлемдері2]","v":{"v":0,"d":"Т0.00"}},{"$f":"JulySales[Сатулар пайдасы/шығыны]+JulySales[Тасымалдау пайдасы/шығыны]","v":{"v":0,"d":"Т0.00"}}]
[{"$nulls":12},{"$f":"JulySales[Жеткізу төлемдері]-JulySales[Жеткізу төлемдері2]","v":{"v":0,"d":"Т0.00"}},{"$f":"JulySales[Сатулар пайдасы/шығыны]+JulySales[Тасымалдау пайдасы/шығыны]","v":{"v":0,"d":"Т0.00"}}]
["Жалпы пайда/шығын",{"$nulls":11},{"$f":"JulySales[Жеткізу төлемдері]-JulySales[Жеткізу төлемдері2]","v":{"v":0,"d":"Т0.00"}},{"$f":"JulySales[Сатулар пайдасы/шығыны]+JulySales[Тасымалдау пайдасы/шығыны]","v":{"v":0,"d":"Т0.00"}}]
[{"$f":"JulySales[[#Totals],[Жалпы пайда/шығын]]","v":{"v":0,"d":"Т0.00"}},{"$nulls":11},{"$f":"JulySales[Жеткізу төлемдері]-JulySales[Жеткізу төлемдері2]","v":{"v":0,"d":"Т0.00"}},{"$f":"JulySales[Сатулар пайдасы/шығыны]+JulySales[Тасымалдау пайдасы/шығыны]","v":{"v":0,"d":"Т0.00"}}]
[null,null,"Қорытынды",{"$f":"\"Сатылған тауарлар: \"&SUBTOTAL(103,JulySales[Тауар сипаттамасы])","v":"Сатылған тауарлар: 0"},{"$f":"SUBTOTAL(109,JulySales[Сатып алу бағасы])","v":{"v":0,"d":"Т0.00"}},{"$f":"SUBTOTAL(109,JulySales[Сату бағасы])","v":{"v":0,"d":"Т0.00"}},{"$f":"SUBTOTAL(109,JulySales[Желідегі төлемдер])","v":{"v":0,"d":"Т0.00"}},{"$f":"SUBTOTAL(109,JulySales[Басқа төлемдері])","v":{"v":0,"d":"Т0.00"}},{"$f":"SUBTOTAL(109,JulySales[Несиелік карталар төлемдері])","v":{"v":0,"d":"Т0.00"}},{"$f":"SUBTOTAL(109,JulySales[Жеткізу төлемдері])","v":{"v":0,"d":"Т0.00"}},{"$f":"SUBTOTAL(109,JulySales[Жеткізу төлемдері2])","v":{"v":0,"d":"Т0.00"}},{"$f":"SUBTOTAL(109,JulySales[Сатулар пайдасы/шығыны])","v":{"v":0,"d":"Т0.00"}},{"$f":"SUBTOTAL(109,JulySales[Тасымалдау пайдасы/шығыны])","v":{"v":0,"d":"Т0.00"}},{"$f":"SUBTOTAL(109,JulySales[Жалпы пайда/шығын])","v":{"v":0,"d":"Т0.00"}}]
["Пайда/шығын бағыты"]

{"sheet":"Тамыз","index":7,"n_rows":9,"n_cols":14,"rows_kept":9,"merged":[[3,0,4,0],[6,0,7,0]]}
["ТАМЫЗ"]
["Желідегі сатулар",null,"Аукцион идентификаторы","Тауар сипаттамасы","Сатып алу бағасы","Сату бағасы","Желідегі төлемдер","Басқа төлемдері","Несиелік карталар төлемдері","Жеткізу төлемдері","Жеткізу төлемдері2","Сатулар пайдасы/шығыны","Тасымалдау пайдасы/шығыны","Жалпы пайда/шығын"]
["Жыл",{"$nulls":11},{"$f":"AugustSales[Жеткізу төлемдері]-AugustSales[Жеткізу төлемдері2]","v":{"v":0,"d":"Т0.00"}},{"$f":"AugustSales[Сатулар пайдасы/шығыны]+AugustSales[Тасымалдау пайдасы/шығыны]","v":{"v":0,"d":"Т0.00"}}]
[{"$f":"SalesYear","v":2012},{"$nulls":11},{"$f":"AugustSales[Жеткізу төлемдері]-AugustSales[Жеткізу төлемдері2]","v":{"v":0,"d":"Т0.00"}},{"$f":"AugustSales[Сатулар пайдасы/шығыны]+AugustSales[Тасымалдау пайдасы/шығыны]","v":{"v":0,"d":"Т0.00"}}]
[{"$nulls":12},{"$f":"AugustSales[Жеткізу төлемдері]-AugustSales[Жеткізу төлемдері2]","v":{"v":0,"d":"Т0.00"}},{"$f":"AugustSales[Сатулар пайдасы/шығыны]+AugustSales[Тасымалдау пайдасы/шығыны]","v":{"v":0,"d":"Т0.00"}}]
["Жалпы пайда/шығын",{"$nulls":11},{"$f":"AugustSales[Жеткізу төлемдері]-AugustSales[Жеткізу төлемдері2]","v":{"v":0,"d":"Т0.00"}},{"$f":"AugustSales[Сатулар пайдасы/шығыны]+AugustSales[Тасымалдау пайдасы/шығыны]","v":{"v":0,"d":"Т0.00"}}]
[{"$f":"AugustSales[[#Totals],[Жалпы пайда/шығын]]","v":{"v":0,"d":"Т0.00"}},{"$nulls":11},{"$f":"AugustSales[Жеткізу төлемдері]-AugustSales[Жеткізу төлемдері2]","v":{"v":0,"d":"Т0.00"}},{"$f":"AugustSales[Сатулар пайдасы/шығыны]+AugustSales[Тасымалдау пайдасы/шығыны]","v":{"v":0,"d":"Т0.00"}}]
[null,null,"Қорытынды",{"$f":"\"Сатылған тауарлар: \"&SUBTOTAL(103,AugustSales[Тауар сипаттамасы])","v":"Сатылған тауарлар: 0"},{"$f":"SUBTOTAL(109,AugustSales[Сатып алу бағасы])","v":{"v":0,"d":"Т0.00"}},{"$f":"SUBTOTAL(109,AugustSales[Сату бағасы])","v":{"v":0,"d":"Т0.00"}},{"$f":"SUBTOTAL(109,AugustSales[Желідегі төлемдер])","v":{"v":0,"d":"Т0.00"}},{"$f":"SUBTOTAL(109,AugustSales[Басқа төлемдері])","v":{"v":0,"d":"Т0.00"}},{"$f":"SUBTOTAL(109,AugustSales[Несиелік карталар төлемдері])","v":{"v":0,"d":"Т0.00"}},{"$f":"SUBTOTAL(109,AugustSales[Жеткізу төлемдері])","v":{"v":0,"d":"Т0.00"}},{"$f":"SUBTOTAL(109,AugustSales[Жеткізу төлемдері2])","v":{"v":0,"d":"Т0.00"}},{"$f":"SUBTOTAL(109,AugustSales[Сатулар пайдасы/шығыны])","v":{"v":0,"d":"Т0.00"}},{"$f":"SUBTOTAL(109,AugustSales[Тасымалдау пайдасы/шығыны])","v":{"v":0,"d":"Т0.00"}},{"$f":"SUBTOTAL(109,AugustSales[Жалпы пайда/шығын])","v":{"v":0,"d":"Т0.00"}}]
["Пайда/шығын бағыты"]

{"sheet":"Қыркүйек","index":8,"n_rows":9,"n_cols":14,"rows_kept":9,"merged":[[3,0,4,0],[6,0,7,0]]}
["ҚЫРКҮЙЕК"]
["Желідегі сатулар",null,"Аукцион идентификаторы","Тауар сипаттамасы","Сатып алу бағасы","Сату бағасы","Желідегі төлемдер","Басқа төлемдері","Несиелік карталар төлемдері","Жеткізу төлемдері","Жеткізу төлемдері2","Сатулар пайдасы/шығыны","Тасымалдау пайдасы/шығыны","Жалпы пайда/шығын"]
["Жыл",{"$nulls":11},{"$f":"SeptemberSales[Жеткізу төлемдері]-SeptemberSales[Жеткізу төлемдері2]","v":{"v":0,"d":"Т0.00"}},{"$f":"SeptemberSales[Сатулар пайдасы/шығыны]+SeptemberSales[Тасымалдау пайдасы/шығыны]","v":{"v":0,"d":"Т0.00"}}]
[{"$f":"SalesYear","v":2012},{"$nulls":11},{"$f":"SeptemberSales[Жеткізу төлемдері]-SeptemberSales[Жеткізу төлемдері2]","v":{"v":0,"d":"Т0.00"}},{"$f":"SeptemberSales[Сатулар пайдасы/шығыны]+SeptemberSales[Тасымалдау пайдасы/шығыны]","v":{"v":0,"d":"Т0.00"}}]
[{"$nulls":12},{"$f":"SeptemberSales[Жеткізу төлемдері]-SeptemberSales[Жеткізу төлемдері2]","v":{"v":0,"d":"Т0.00"}},{"$f":"SeptemberSales[Сатулар пайдасы/шығыны]+SeptemberSales[Тасымалдау пайдасы/шығыны]","v":{"v":0,"d":"Т0.00"}}]
["Жалпы пайда/шығын",{"$nulls":11},{"$f":"SeptemberSales[Жеткізу төлемдері]-SeptemberSales[Жеткізу төлемдері2]","v":{"v":0,"d":"Т0.00"}},{"$f":"SeptemberSales[Сатулар пайдасы/шығыны]+SeptemberSales[Тасымалдау пайдасы/шығыны]","v":{"v":0,"d":"Т0.00"}}]
[{"$f":"SeptemberSales[[#Totals],[Жалпы пайда/шығын]]","v":{"v":0,"d":"Т0.00"}},{"$nulls":11},{"$f":"SeptemberSales[Жеткізу төлемдері]-SeptemberSales[Жеткізу төлемдері2]","v":{"v":0,"d":"Т0.00"}},{"$f":"SeptemberSales[Сатулар пайдасы/шығыны]+SeptemberSales[Тасымалдау пайдасы/шығыны]","v":{"v":0,"d":"Т0.00"}}]
[null,null,"Қорытынды",{"$f":"\"Сатылған тауарлар: \"&SUBTOTAL(103,SeptemberSales[Тауар сипаттамасы])","v":"Сатылған тауарлар: 0"},{"$f":"SUBTOTAL(109,SeptemberSales[Сатып алу бағасы])","v":{"v":0,"d":"Т0.00"}},{"$f":"SUBTOTAL(109,SeptemberSales[Сату бағасы])","v":{"v":0,"d":"Т0.00"}},{"$f":"SUBTOTAL(109,SeptemberSales[Желідегі төлемдер])","v":{"v":0,"d":"Т0.00"}},{"$f":"SUBTOTAL(109,SeptemberSales[Басқа төлемдері])","v":{"v":0,"d":"Т0.00"}},{"$f":"SUBTOTAL(109,SeptemberSales[Несиелік карталар төлемдері])","v":{"v":0,"d":"Т0.00"}},{"$f":"SUBTOTAL(109,SeptemberSales[Жеткізу төлемдері])","v":{"v":0,"d":"Т0.00"}},{"$f":"SUBTOTAL(109,SeptemberSales[Жеткізу төлемдері2])","v":{"v":0,"d":"Т0.00"}},{"$f":"SUBTOTAL(109,SeptemberSales[Сатулар пайдасы/шығыны])","v":{"v":0,"d":"Т0.00"}},{"$f":"SUBTOTAL(109,SeptemberSales[Тасымалдау пайдасы/шығыны])","v":{"v":0,"d":"Т0.00"}},{"$f":"SUBTOTAL(109,SeptemberSales[Жалпы пайда/шығын])","v":{"v":0,"d":"Т0.00"}}]
["Пайда/шығын бағыты"]

{"sheet":"Қазан","index":9,"n_rows":9,"n_cols":14,"rows_kept":9,"merged":[[3,0,4,0],[6,0,7,0]]}
["ҚАЗАН"]
["Желідегі сатулар",null,"Аукцион идентификаторы","Тауар сипаттамасы","Сатып алу бағасы","Сату бағасы","Желідегі төлемдер","Басқа төлемдері","Несиелік карталар төлемдері","Жеткізу төлемдері","Жеткізу төлемдері2","Сатулар пайдасы/шығыны","Тасымалдау пайдасы/шығыны","Жалпы пайда/шығын"]
["Жыл",{"$nulls":11},{"$f":"OctoberSales[Жеткізу төлемдері]-OctoberSales[Жеткізу төлемдері2]","v":{"v":0,"d":"Т0.00"}},{"$f":"OctoberSales[Сатулар пайдасы/шығыны]+OctoberSales[Тасымалдау пайдасы/шығыны]","v":{"v":0,"d":"Т0.00"}}]
[{"$f":"SalesYear","v":2012},{"$nulls":11},{"$f":"OctoberSales[Жеткізу төлемдері]-OctoberSales[Жеткізу төлемдері2]","v":{"v":0,"d":"Т0.00"}},{"$f":"OctoberSales[Сатулар пайдасы/шығыны]+OctoberSales[Тасымалдау пайдасы/шығыны]","v":{"v":0,"d":"Т0.00"}}]
[{"$nulls":12},{"$f":"OctoberSales[Жеткізу төлемдері]-OctoberSales[Жеткізу төлемдері2]","v":{"v":0,"d":"Т0.00"}},{"$f":"OctoberSales[Сатулар пайдасы/шығыны]+OctoberSales[Тасымалдау пайдасы/шығыны]","v":{"v":0,"d":"Т0.00"}}]
["Жалпы пайда/шығын",{"$nulls":11},{"$f":"OctoberSales[Жеткізу төлемдері]-OctoberSales[Жеткізу төлемдері2]","v":{"v":0,"d":"Т0.00"}},{"$f":"OctoberSales[Сатулар пайдасы/шығыны]+OctoberSales[Тасымалдау пайдасы/шығыны]","v":{"v":0,"d":"Т0.00"}}]
[{"$f":"OctoberSales[[#Totals],[Жалпы пайда/шығын]]","v":{"v":0,"d":"Т0.00"}},{"$nulls":11},{"$f":"OctoberSales[Жеткізу төлемдері]-OctoberSales[Жеткізу төлемдері2]","v":{"v":0,"d":"Т0.00"}},{"$f":"OctoberSales[Сатулар пайдасы/шығыны]+OctoberSales[Тасымалдау пайдасы/шығыны]","v":{"v":0,"d":"Т0.00"}}]
[null,null,"Қорытынды",{"$f":"\"Сатылған тауарлар: \"&SUBTOTAL(103,OctoberSales[Тауар сипаттамасы])","v":"Сатылған тауарлар: 0"},{"$f":"SUBTOTAL(109,OctoberSales[Сатып алу бағасы])","v":{"v":0,"d":"Т0.00"}},{"$f":"SUBTOTAL(109,OctoberSales[Сату бағасы])","v":{"v":0,"d":"Т0.00"}},{"$f":"SUBTOTAL(109,OctoberSales[Желідегі төлемдер])","v":{"v":0,"d":"Т0.00"}},{"$f":"SUBTOTAL(109,OctoberSales[Басқа төлемдері])","v":{"v":0,"d":"Т0.00"}},{"$f":"SUBTOTAL(109,OctoberSales[Несиелік карталар төлемдері])","v":{"v":0,"d":"Т0.00"}},{"$f":"SUBTOTAL(109,OctoberSales[Жеткізу төлемдері])","v":{"v":0,"d":"Т0.00"}},{"$f":"SUBTOTAL(109,OctoberSales[Жеткізу төлемдері2])","v":{"v":0,"d":"Т0.00"}},{"$f":"SUBTOTAL(109,OctoberSales[Сатулар пайдасы/шығыны])","v":{"v":0,"d":"Т0.00"}},{"$f":"SUBTOTAL(109,OctoberSales[Тасымалдау пайдасы/шығыны])","v":{"v":0,"d":"Т0.00"}},{"$f":"SUBTOTAL(109,OctoberSales[Жалпы пайда/шығын])","v":{"v":0,"d":"Т0.00"}}]
["Пайда/шығын бағыты"]

{"sheet":"Қараша","index":10,"n_rows":9,"n_cols":14,"rows_kept":9,"merged":[[3,0,4,0],[6,0,7,0]]}
["ҚАРАША"]
["Желідегі сатулар",null,"Аукцион идентификаторы","Тауар сипаттамасы","Сатып алу бағасы","Сату бағасы","Желідегі төлемдер","Басқа төлемдері","Несиелік карталар төлемдері","Жеткізу төлемдері","Жеткізу төлемдері2","Сатулар пайдасы/шығыны","Тасымалдау пайдасы/шығыны","Жалпы пайда/шығын"]
["Жыл",{"$nulls":11},{"$f":"NovemberSales[Жеткізу төлемдері]-NovemberSales[Жеткізу төлемдері2]","v":{"v":0,"d":"Т0.00"}},{"$f":"NovemberSales[Сатулар пайдасы/шығыны]+NovemberSales[Тасымалдау пайдасы/шығыны]","v":{"v":0,"d":"Т0.00"}}]
[{"$f":"SalesYear","v":2012},{"$nulls":11},{"$f":"NovemberSales[Жеткізу төлемдері]-NovemberSales[Жеткізу төлемдері2]","v":{"v":0,"d":"Т0.00"}},{"$f":"NovemberSales[Сатулар пайдасы/шығыны]+NovemberSales[Тасымалдау пайдасы/шығыны]","v":{"v":0,"d":"Т0.00"}}]
[{"$nulls":12},{"$f":"NovemberSales[Жеткізу төлемдері]-NovemberSales[Жеткізу төлемдері2]","v":{"v":0,"d":"Т0.00"}},{"$f":"NovemberSales[Сатулар пайдасы/шығыны]+NovemberSales[Тасымалдау пайдасы/шығыны]","v":{"v":0,"d":"Т0.00"}}]
["Жалпы пайда/шығын",{"$nulls":11},{"$f":"NovemberSales[Жеткізу төлемдері]-NovemberSales[Жеткізу төлемдері2]","v":{"v":0,"d":"Т0.00"}},{"$f":"NovemberSales[Сатулар пайдасы/шығыны]+NovemberSales[Тасымалдау пайдасы/шығыны]","v":{"v":0,"d":"Т0.00"}}]
[{"$f":"NovemberSales[[#Totals],[Жалпы пайда/шығын]]","v":{"v":0,"d":"Т0.00"}},{"$nulls":11},{"$f":"NovemberSales[Жеткізу төлемдері]-NovemberSales[Жеткізу төлемдері2]","v":{"v":0,"d":"Т0.00"}},{"$f":"NovemberSales[Сатулар пайдасы/шығыны]+NovemberSales[Тасымалдау пайдасы/шығыны]","v":{"v":0,"d":"Т0.00"}}]
[null,null,"Қорытынды",{"$f":"\"Сатылған тауарлар: \"&SUBTOTAL(103,NovemberSales[Тауар сипаттамасы])","v":"Сатылған тауарлар: 0"},{"$f":"SUBTOTAL(109,NovemberSales[Сатып алу бағасы])","v":{"v":0,"d":"Т0.00"}},{"$f":"SUBTOTAL(109,NovemberSales[Сату бағасы])","v":{"v":0,"d":"Т0.00"}},{"$f":"SUBTOTAL(109,NovemberSales[Желідегі төлемдер])","v":{"v":0,"d":"Т0.00"}},{"$f":"SUBTOTAL(109,NovemberSales[Басқа төлемдері])","v":{"v":0,"d":"Т0.00"}},{"$f":"SUBTOTAL(109,NovemberSales[Несиелік карталар төлемдері])","v":{"v":0,"d":"Т0.00"}},{"$f":"SUBTOTAL(109,NovemberSales[Жеткізу төлемдері])","v":{"v":0,"d":"Т0.00"}},{"$f":"SUBTOTAL(109,NovemberSales[Жеткізу төлемдері2])","v":{"v":0,"d":"Т0.00"}},{"$f":"SUBTOTAL(109,NovemberSales[Сатулар пайдасы/шығыны])","v":{"v":0,"d":"Т0.00"}},{"$f":"SUBTOTAL(109,NovemberSales[Тасымалдау пайдасы/шығыны])","v":{"v":0,"d":"Т0.00"}},{"$f":"SUBTOTAL(109,NovemberSales[Жалпы пайда/шығын])","v":{"v":0,"d":"Т0.00"}}]
["Пайда/шығын бағыты"]

{"sheet":"Желтоқсан","index":11,"n_rows":9,"n_cols":14,"rows_kept":9,"merged":[[3,0,4,0],[6,0,7,0]]}
["ЖЕЛТОҚСАН"]
["Желідегі сатулар",null,"Аукцион идентификаторы","Тауар сипаттамасы","Сатып алу бағасы","Сату бағасы","Желідегі төлемдер","Басқа төлемдері","Несиелік карталар төлемдері","Жеткізу төлемдері","Жеткізу төлемдері2","Сатулар пайдасы/шығыны","Тасымалдау пайдасы/шығыны","Жалпы пайда/шығын"]
["Жыл",{"$nulls":11},{"$f":"DecemberSales[Жеткізу төлемдері]-DecemberSales[Жеткізу төлемдері2]","v":{"v":0,"d":"Т0.00"}},{"$f":"DecemberSales[Сатулар пайдасы/шығыны]+DecemberSales[Тасымалдау пайдасы/шығыны]","v":{"v":0,"d":"Т0.00"}}]
[{"$f":"SalesYear","v":2012},{"$nulls":11},{"$f":"DecemberSales[Жеткізу төлемдері]-DecemberSales[Жеткізу төлемдері2]","v":{"v":0,"d":"Т0.00"}},{"$f":"DecemberSales[Сатулар пайдасы/шығыны]+DecemberSales[Тасымалдау пайдасы/шығыны]","v":{"v":0,"d":"Т0.00"}}]
[{"$nulls":12},{"$f":"DecemberSales[Жеткізу төлемдері]-DecemberSales[Жеткізу төлемдері2]","v":{"v":0,"d":"Т0.00"}},{"$f":"DecemberSales[Сатулар пайдасы/шығыны]+DecemberSales[Тасымалдау пайдасы/шығыны]","v":{"v":0,"d":"Т0.00"}}]
["Жалпы пайда/шығын",{"$nulls":11},{"$f":"DecemberSales[Жеткізу төлемдері]-DecemberSales[Жеткізу төлемдері2]","v":{"v":0,"d":"Т0.00"}},{"$f":"DecemberSales[Сатулар пайдасы/шығыны]+DecemberSales[Тасымалдау пайдасы/шығыны]","v":{"v":0,"d":"Т0.00"}}]
[{"$f":"DecemberSales[[#Totals],[Жалпы пайда/шығын]]","v":{"v":0,"d":"Т0.00"}},{"$nulls":11},{"$f":"DecemberSales[Жеткізу төлемдері]-DecemberSales[Жеткізу төлемдері2]","v":{"v":0,"d":"Т0.00"}},{"$f":"DecemberSales[Сатулар пайдасы/шығыны]+DecemberSales[Тасымалдау пайдасы/шығыны]","v":{"v":0,"d":"Т0.00"}}]
[null,null,"Қорытынды",{"$f":"\"Сатылған тауарлар: \"&SUBTOTAL(103,DecemberSales[Тауар сипаттамасы])","v":"Сатылған тауарлар: 0"},{"$f":"SUBTOTAL(109,DecemberSales[Сатып алу бағасы])","v":{"v":0,"d":"Т0.00"}},{"$f":"SUBTOTAL(109,DecemberSales[Сату бағасы])","v":{"v":0,"d":"Т0.00"}},{"$f":"SUBTOTAL(109,DecemberSales[Желідегі төлемдер])","v":{"v":0,"d":"Т0.00"}},{"$f":"SUBTOTAL(109,DecemberSales[Басқа төлемдері])","v":{"v":0,"d":"Т0.00"}},{"$f":"SUBTOTAL(109,DecemberSales[Несиелік карталар төлемдері])","v":{"v":0,"d":"Т0.00"}},{"$f":"SUBTOTAL(109,DecemberSales[Жеткізу төлемдері])","v":{"v":0,"d":"Т0.00"}},{"$f":"SUBTOTAL(109,DecemberSales[Жеткізу төлемдері2])","v":{"v":0,"d":"Т0.00"}},{"$f":"SUBTOTAL(109,DecemberSales[Сатулар пайдасы/шығыны])","v":{"v":0,"d":"Т0.00"}},{"$f":"SUBTOTAL(109,DecemberSales[Тасымалдау пайдасы/шығыны])","v":{"v":0,"d":"Т0.00"}},{"$f":"SUBTOTAL(109,DecemberSales[Жалпы пайда/шығын])","v":{"v":0,"d":"Т0.00"}}]
["Пайда/шығын бағыты"]

{"sheet":"Осы жылғы жиынтық","index":12,"n_rows":16,"n_cols":11,"rows_kept":16,"merged":[[3,0,4,0],[6,0,7,0]]}
["Осы жылғы"]
["Жиынтық",null,"Пайда/шығын",{"$nulls":4},"Осы жылғы пайда/шығын"]
["Жыл",{"$nulls":6},"Ай","Сатулар пайдасы/шығыны","Тасымалдау пайдасы/шығыны","Жалпы пайда/шығын"]
[{"$f":"SalesYear","v":2012},{"$nulls":6},"Қаңтар",{"$f":"JanuarySales[[#Totals],[Сатулар пайдасы/шығыны]]","v":{"v":79.5,"d":"Т79.50"}},{"$f":"JanuarySales[[#Totals],[Тасымалдау пайдасы/шығыны]]","v":{"v":9.5,"d":"Т9.50"}},{"$f":"IF(AND(YTDSummary[[#This Row],[Сатулар пайдасы/шығыны]]<>\"\",YTDSummary[[#This Row],[Тасымалдау пайдасы/шығыны]]<>\"\"),YTDSummary[[#This Row],[Сатулар пайдасы/шығыны]]+YTDSummary[[#This Row],[Тасымалдау пайдасы/шығыны]],\"\")","v":{"v":89,"d":"Т89.00"}}]
[{"$nulls":7},"Ақпан",{"$f":"FebruarySales[[#Totals],[Сатулар пайдасы/шығыны]]","v":{"v":212.3,"d":"Т212.30"}},{"$f":"FebruarySales[[#Totals],[Тасымалдау пайдасы/шығыны]]","v":{"v":12.3,"d":"Т12.30"}},{"$f":"IF(AND(YTDSummary[[#This Row],[Сатулар пайдасы/шығыны]]<>\"\",YTDSummary[[#This Row],[Тасымалдау пайдасы/шығыны]]<>\"\"),YTDSummary[[#This Row],[Сатулар пайдасы/шығыны]]+YTDSummary[[#This Row],[Тасымалдау пайдасы/шығыны]],\"\")","v":{"v":224.60000000000002,"d":"Т224.60"}}]
["Айлық сатулар бағыты:",{"$nulls":6},"Наурыз",{"$f":"MarchSales[[#Totals],[Сатулар пайдасы/шығыны]]","v":{"v":0,"d":"Т0.00"}},{"$f":"MarchSales[[#Totals],[Тасымалдау пайдасы/шығыны]]","v":{"v":0,"d":"Т0.00"}},{"$f":"IF(AND(YTDSummary[[#This Row],[Сатулар пайдасы/шығыны]]<>\"\",YTDSummary[[#This Row],[Тасымалдау пайдасы/шығыны]]<>\"\"),YTDSummary[[#This Row],[Сатулар пайдасы/шығыны]]+YTDSummary[[#This Row],[Тасымалдау пайдасы/шығыны]],\"\")","v":{"v":0,"d":"Т0.00"}}]
[{"$nulls":7},"Сәуір",{"$f":"AprilSales[[#Totals],[Сатулар пайдасы/шығыны]]","v":{"v":0,"d":"Т0.00"}},{"$f":"AprilSales[[#Totals],[Тасымалдау пайдасы/шығыны]]","v":{"v":0,"d":"Т0.00"}},{"$f":"IF(AND(YTDSummary[[#This Row],[Сатулар пайдасы/шығыны]]<>\"\",YTDSummary[[#This Row],[Тасымалдау пайдасы/шығыны]]<>\"\"),YTDSummary[[#This Row],[Сатулар пайдасы/шығыны]]+YTDSummary[[#This Row],[Тасымалдау пайдасы/шығыны]],\"\")","v":{"v":0,"d":"Т0.00"}}]
[{"$nulls":7},"Мамыр",{"$f":"MaySales[[#Totals],[Сатулар пайдасы/шығыны]]","v":{"v":0,"d":"Т0.00"}},{"$f":"MaySales[[#Totals],[Тасымалдау пайдасы/шығыны]]","v":{"v":0,"d":"Т0.00"}},{"$f":"IF(AND(YTDSummary[[#This Row],[Сатулар пайдасы/шығыны]]<>\"\",YTDSummary[[#This Row],[Тасымалдау пайдасы/шығыны]]<>\"\"),YTDSummary[[#This Row],[Сатулар пайдасы/шығыны]]+YTDSummary[[#This Row],[Тасымалдау пайдасы/шығыны]],\"\")","v":{"v":0,"d":"Т0.00"}}]
[{"$nulls":7},"Маусым",{"$f":"JuneSales[[#Totals],[Сатулар пайдасы/шығыны]]","v":{"v":0,"d":"Т0.00"}},{"$f":"JuneSales[[#Totals],[Тасымалдау пайдасы/шығыны]]","v":{"v":0,"d":"Т0.00"}},{"$f":"IF(AND(YTDSummary[[#This Row],[Сатулар пайдасы/шығыны]]<>\"\",YTDSummary[[#This Row],[Тасымалдау пайдасы/шығыны]]<>\"\"),YTDSummary[[#This Row],[Сатулар пайдасы/шығыны]]+YTDSummary[[#This Row],[Тасымалдау пайдасы/шығыны]],\"\")","v":{"v":0,"d":"Т0.00"}}]
[{"$nulls":7},"Шілде",{"$f":"JulySales[[#Totals],[Сатулар пайдасы/шығыны]]","v":{"v":0,"d":"Т0.00"}},{"$f":"JulySales[[#Totals],[Тасымалдау пайдасы/шығыны]]","v":{"v":0,"d":"Т0.00"}},{"$f":"IF(AND(YTDSummary[[#This Row],[Сатулар пайдасы/шығыны]]<>\"\",YTDSummary[[#This Row],[Тасымалдау пайдасы/шығыны]]<>\"\"),YTDSummary[[#This Row],[Сатулар пайдасы/шығыны]]+YTDSummary[[#This Row],[Тасымалдау пайдасы/шығыны]],\"\")","v":{"v":0,"d":"Т0.00"}}]
[{"$nulls":7},"Тамыз",{"$f":"AugustSales[[#Totals],[Сатулар пайдасы/шығыны]]","v":{"v":0,"d":"Т0.00"}},{"$f":"AugustSales[[#Totals],[Тасымалдау пайдасы/шығыны]]","v":{"v":0,"d":"Т0.00"}},{"$f":"IF(AND(YTDSummary[[#This Row],[Сатулар пайдасы/шығыны]]<>\"\",YTDSummary[[#This Row],[Тасымалдау пайдасы/шығыны]]<>\"\"),YTDSummary[[#This Row],[Сатулар пайдасы/шығыны]]+YTDSummary[[#This Row],[Тасымалдау пайдасы/шығыны]],\"\")","v":{"v":0,"d":"Т0.00"}}]
[{"$nulls":7},"Қыркүйек",{"$f":"SeptemberSales[[#Totals],[Сатулар пайдасы/шығыны]]","v":{"v":0,"d":"Т0.00"}},{"$f":"SeptemberSales[[#Totals],[Тасымалдау пайдасы/шығыны]]","v":{"v":0,"d":"Т0.00"}},{"$f":"IF(AND(YTDSummary[[#This Row],[Сатулар пайдасы/шығыны]]<>\"\",YTDSummary[[#This Row],[Тасымалдау пайдасы/шығыны]]<>\"\"),YTDSummary[[#This Row],[Сатулар пайдасы/шығыны]]+YTDSummary[[#This Row],[Тасымалдау пайдасы/шығыны]],\"\")","v":{"v":0,"d":"Т0.00"}}]
[{"$nulls":7},"Қазан",{"$f":"OctoberSales[[#Totals],[Сатулар пайдасы/шығыны]]","v":{"v":0,"d":"Т0.00"}},{"$f":"OctoberSales[[#Totals],[Тасымалдау пайдасы/шығыны]]","v":{"v":0,"d":"Т0.00"}},{"$f":"IF(AND(YTDSummary[[#This Row],[Сатулар пайдасы/шығыны]]<>\"\",YTDSummary[[#This Row],[Тасымалдау пайдасы/шығыны]]<>\"\"),YTDSummary[[#This Row],[Сатулар пайдасы/шығыны]]+YTDSummary[[#This Row],[Тасымалдау пайдасы/шығыны]],\"\")","v":{"v":0,"d":"Т0.00"}}]
[{"$nulls":7},"Қараша",{"$f":"NovemberSales[[#Totals],[Сатулар пайдасы/шығыны]]","v":{"v":0,"d":"Т0.00"}},{"$f":"NovemberSales[[#Totals],[Тасымалдау пайдасы/шығыны]]","v":{"v":0,"d":"Т0.00"}},{"$f":"IF(AND(YTDSummary[[#This Row],[Сатулар пайдасы/шығыны]]<>\"\",YTDSummary[[#This Row],[Тасымалдау пайдасы/шығыны]]<>\"\"),YTDSummary[[#This Row],[Сатулар пайдасы/шығыны]]+YTDSummary[[#This Row],[Тасымалдау пайдасы/шығыны]],\"\")","v":{"v":0,"d":"Т0.00"}}]
[{"$nulls":7},"Желтоқсан",{"$f":"DecemberSales[[#Totals],[Сатулар пайдасы/шығыны]]","v":{"v":0,"d":"Т0.00"}},{"$f":"DecemberSales[[#Totals],[Тасымалдау пайдасы/шығыны]]","v":{"v":0,"d":"Т0.00"}},{"$f":"IF(AND(YTDSummary[[#This Row],[Сатулар пайдасы/шығыны]]<>\"\",YTDSummary[[#This Row],[Тасымалдау пайдасы/шығыны]]<>\"\"),YTDSummary[[#This Row],[Сатулар пайдасы/шығыны]]+YTDSummary[[#This Row],[Тасымалдау пайдасы/шығыны]],\"\")","v":{"v":0,"d":"Т0.00"}}]
[{"$nulls":7},"Қорытынды",{"$f":"SUBTOTAL(109,YTDSummary[Сатулар пайдасы/шығыны])","v":{"v":291.8,"d":"Т291.80"}},{"$f":"SUBTOTAL(109,YTDSummary[Тасымалдау пайдасы/шығыны])","v":{"v":21.8,"d":"Т21.80"}},{"$f":"SUBTOTAL(109,YTDSummary[Жалпы пайда/шығын])","v":{"v":313.6,"d":"Т313.60"}}]